fUSD/lending_fUSD_20241119
["ID","MTS","AMOUNT","RATE_DAILY","PERIOD"]
[342708968,1732055447244,-500.0,0.00063038,120]
[342708969,1732055447253,-600.0,0.00063038,120]
[342708970,1732055447262,-4490.2,0.00063218,117]
[342708971,1732055447272,-157.31,0.00063338,120]
[342708972,1732055447281,-232.75,0.00063519,2]
[342708973,1732055447290,-200.0,0.00063586,120]
[342708974,1732055447300,-500.0,0.00063586,120]
[342708975,1732055447309,-600.0,0.00063586,120]
[342708976,1732055447322,-15000.0,0.0006378,30]
[342708977,1732055447332,-3000.0,0.0006378,116]
[342708978,1732055447342,-157.37,0.00063784,120]
[342708979,1732055447351,-225821.57528165,0.000638,120]
[342708980,1732055447360,-10000.0,0.0006399,120]
[342708981,1732055447370,-1000.0,0.00063999,120]
[342708982,1732055447379,-50000.0,0.00064,64]
[342708983,1732055447388,-50000.0,0.00064,54]
[342708984,1732055447398,-6900.7074906,0.00064,120]
[342708985,1732055447407,-10000.0,0.00064,120]
[342708986,1732055447416,-2000.0,0.00064,7]
[342708987,1732055447426,-200.0,0.00064,120]
[342708988,1732055447435,-200.0,0.00064,120]
[342708989,1732055447444,-21924.46164141,0.00064,120]
[342708990,1732055447453,-500000.0,0.00064,120]
[342708991,1732055447462,-164.79435559,0.00064,60]
[342708992,1732055447471,-500.0,0.00064134,120]
[342708993,1732055447480,-600.0,0.00064134,120]
[342708994,1732055447489,-151.0,0.00064301,120]
[342708995,1732055447499,-10000.0,0.0006444,30]
[342708996,1732055447508,-500.0,0.00064682,120]
[342708997,1732055447517,-600.0,0.00064682,120]
[342708998,1732055447527,-7418.32284152,0.0006478,120]
[342708999,1732055447535,-32122.09759821,0.000648,120]
[342709000,1732055447601,-17877.90240179,0.000648,120]
[342709001,1732055447611,-6851.98598421,0.000648,120]
[342709002,1732055447622,-24851.56038248,0.000648,120]
[342709003,1732055447659,-500.0,0.0004088,2]
[342709004,1732055447668,-500.0,0.00054794,120]
[342709005,1732055447678,-500.0,0.00054967,120]
[342709006,1732055447687,-500.0,0.00055068,120]
[342709007,1732055447696,-500.0,0.00055241,120]
[342709008,1732055447705,-500.0,0.00055515,120]
[342709009,1732055447714,-85.2,0.000648,120]
[342709010,1732055447726,-6123.43991995,0.000648,120]
[342709011,1732055447737,-2087.81371336,0.000648,120]
[342709012,1732055447746,-163.77,0.00064807,120]
[342709013,1732055447755,-221.0,0.0006482,30]
[342709014,1732055447764,-252.41628664,0.00065,65]
[342709015,1732055447779,-150.0,0.00051234,60]
[342709016,1732055447789,-515.01529094,0.00065,65]
[342709017,1732055447800,-1000.0,0.00065,65]
[342709018,1732055447814,-7333.20001007,0.00065,65]
[342709019,1732055447827,-9429.00000001,0.00065,65]
[342709020,1732055447839,-4522.04143853,0.00065,65]
[342709021,1732055447849,-1380.785,0.00065,65]
[342709022,1732055447860,-989.665,0.00065,65]
[342709023,1732055448103,-156.55,0.00015342,2]
[342709024,1732055448113,-156.55,0.00021745,2]
[342709025,1732055448122,-156.55,0.00028147,2]
[342709026,1732055448132,-156.55,0.00034549,2]
[342709027,1732055448143,-156.55,0.00040952,2]
[342709028,1732055448153,-500.0,0.00043144,2]
[342709029,1732055448164,-156.55,0.00047354,2]
[342709030,1732055448175,-156.55,0.00053756,2]
[342709031,1732055448186,-500.0,0.00054794,120]
[342709032,1732055448197,-500.0,0.00054967,120]
[342709033,1732055448207,-156.55,0.00060159,120]
[342709034,1732055448218,-24577.87697381,0.00065,65]
[342709035,1732055448229,-50000.0,0.00065,55]
[342709036,1732055448241,-1560.67583523,0.00065,120]
[342709037,1732055448260,-482538.053,0.00065,120]
[342709038,1732055448272,-3157.99,0.00065,120]
[342709039,1732055448283,-67814.30853412,0.00065,120]
[342709040,1732055448297,-143511.9778513,0.00065,120]
[342709041,1732055448308,-23242.39265719,0.00065,120]
[342709042,1732055448331,-225136.67148818,0.00065,120]
[342709043,1732055448374,-500.0,0.00054794,120]
[342709044,1732055448386,-251620.93585463,0.00065,120]
[342709045,1732055448397,-151.0,0.00065,120]
[342709046,1732055448408,-151.0,0.00065,120]
[342709047,1732055448419,-151.0,0.00065,120]
[342709048,1732055448430,-1801.132291,0.00065,120]
[342709049,1732055448441,-177.222592,0.00065,120]
[342709050,1732055448453,-1801.132291,0.00065,120]
[342709051,1732055448467,-177.222592,0.00065,120]
[342709052,1732055448478,-151.0,0.00065,120]
[342709053,1732055448490,-151.0,0.00065,120]
[342709054,1732055448501,-151.0,0.00065,120]
[342709055,1732055448514,-151.0,0.00065,120]
[342709056,1732055448526,-151.0,0.00065,120]
[342709057,1732055448538,-262.047862,0.00065,120]
[342709058,1732055448550,-262.047862,0.00065,120]
[342709059,1732055448566,-151.0,0.00065,120]
[342709060,1732055448579,-151.0,0.00065,120]
[342709061,1732055448590,-303.3,0.00065105,120]
[342709062,1732055448601,-500.0,0.0006523,120]
[342709063,1732055448612,-600.0,0.0006523,120]
[342709064,1732055448624,-5098.30288494,0.000655,120]
[342709065,1732055448635,-300.98258281,0.00065614,2]
[342709066,1732055448647,-196.55611396,0.00065778,120]
[342709067,1732055448658,-600.0,0.00065778,120]
[342709068,1732055448672,-232.75,0.00065783,2]
[342709069,1732055448683,-1293.986699,0.000658,120]
[342709070,1732055448723,-4431.71894233,0.000658,120]
[342709071,1732055448736,-9395.47115244,0.000658,120]
[342709072,1732055448749,-2155.95315361,0.000658,120]
[342709073,1732055448762,-460.88994,0.000658,120]
[342709074,1732055448777,-254.7230896,0.000658,120]
[342709075,1732055448794,-2000.0,0.000658,120]
[342709076,1732055448807,-5633.10000002,0.000658,120]
[342709077,1732055448831,-500.0,0.00044761,2]
[342709078,1732055448842,-33712.47647891,0.000658,120]
[342709079,1732055448853,-144.95991102,0.00065869,120]
[342709080,1732055448867,-855.04008898,0.00065869,120]
[342709081,1732055448877,-200.0,0.00065886,120]
[342709082,1732055448888,-481.30244366,0.0006589,120]
[342709083,1732055448899,-1735.50580986,0.0006589,120]
[342709084,1732055448909,-1735.50580986,0.00065895,120]
[342709085,1732055448921,-2728.84870764,0.00065896,120]
[342709086,1732055448934,-3430.67470674,0.00065896,120]
[342709087,1732055448947,-5335.71040279,0.00065896,120]
[342709088,1732055448958,-879.60105573,0.000659,120]
[342709089,1732055448971,-868.20196977,0.000659,120]
[342709090,1732055448989,-590.159159,0.000659,120]
[342709091,1732055449002,-367.3295172,0.000659,120]
[342709092,1732055449016,-658.293164,0.000659,120]
[342709093,1732055449162,-871.9,0.00052,30]
[342709094,1732055449172,-764.05,0.00052,30]
[342709095,1732055449183,-764.05,0.00052,30]
[342709096,1732055449192,-431.61,0.00052,30]
[342709097,1732055449202,-520.50062347,0.00054967,30]
[342709098,1732055449212,-551.51033373,0.00054967,120]
[342709099,1732055449221,-500.0,0.00055068,120]
[342709100,1732055449231,-151.0,0.00063,120]
[342709101,1732055449240,-2651.5396728,0.000659,120]
[342709102,1732055449265,-500.0,0.00045753,2]
[342709103,1732055449274,-50000.0,0.00055,2]
[342709104,1732055449284,-3984.8754615,0.000659,120]
[342709105,1732055449293,-445.49592491,0.00065902,120]
[342709106,1732055449303,-1183.09318199,0.00065924,120]
[342709107,1732055449318,-1183.09318199,0.00065962,120]
[342709108,1732055449328,-1735.50580986,0.0006597,120]
[342709109,1732055449338,-1735.50580986,0.00065975,120]
[342709110,1732055449348,-200.0,0.00065976,120]
[342709111,1732055449361,-115579.40569053,0.0006598,120]
[342709112,1732055449372,-439.53685854,0.0006598,120]
[342709113,1732055449385,-1777.08,0.0006598,120]
[342709114,1732055449397,-4704.4849664,0.0006598,120]
[342709115,1732055449412,-616.29964643,0.0006598,120]
[342709116,1732055449423,-7492.4982473,0.0006598,120]
[342709117,1732055449435,-82653.55969582,0.0006598,120]
[342709118,1732055449445,-151.0,0.0006598,120]
[342709119,1732055449454,-151.0,0.0006598,120]
[342709120,1732055449464,-151.0,0.0006598,120]
[342709121,1732055449474,-151.0,0.0006598,120]
[342709122,1732055449484,-151.0,0.0006598,120]
[342709123,1732055449494,-151.0,0.0006598,120]
[342709124,1732055449504,-151.0,0.0006598,120]
[342709125,1732055449514,-366.006876,0.0006598,120]
[342709126,1732055449525,-366.006876,0.0006598,120]
[342709127,1732055449536,-151.0,0.0006598,120]
[342709128,1732055449546,-338.138412,0.0006598,120]
[342709129,1732055449557,-338.138412,0.0006598,120]
[342709130,1732055449568,-151.0,0.0006598,120]
[342709131,1732055449578,-151.0,0.0006598,120]
[342709132,1732055449588,-151.0,0.0006598,120]
[342709133,1732055449598,-11495.23381717,0.00065988,120]
[342709134,1732055449607,-445.49592491,0.00065991,120]
[342709135,1732055449618,-11495.23381717,0.00065991,120]
[342709136,1732055449628,-1183.09318199,0.00065992,120]
[342709137,1732055449638,-1000.0,0.00065999,120]
[342709138,1732055449647,-47459.19206462,0.00066,66]
[342709139,1732055449659,-2540.80793538,0.00066,66]
[342709140,1732055449669,-2614.72186033,0.00066,30]
[342709141,1732055449680,-1227.23578763,0.00066,30]
[342709142,1732055449691,-4296.90602385,0.00066,30]
[342709143,1732055449702,-1975.41486934,0.00066,30]
[342709144,1732055449714,-7469.53195281,0.00066,30]
[342709145,1732055449726,-14388.19121302,0.00066,30]
[342709146,1732055512064,3630.7,0.00027,120]
[342709152,1732056425111,-361.5595471,0.00015,2]
[342709153,1732056434091,-337.4404529,0.00015,2]
[342709154,1732056434112,-211.94,0.00015342,2]
[342709155,1732056434134,-150.0,0.00016485,2]
[342709156,1732056434156,-209.16,0.00019178,2]
[342709157,1732056434178,-211.94,0.00021745,2]
[342709158,1732056434199,-211.94,0.00028147,2]
[342709159,1732056434342,-151.0,0.0003,120]
[342709160,1732056434365,-150.0,0.00031425,2]
[342709161,1732056434386,-252.585867,0.00031442,2]
[342709162,1732056434406,-300.0,0.00031595,3]
[342709163,1732056434428,-200.0,0.00031595,30]
[342709164,1732056434450,-867.01929278,0.00031596,2]
[342709165,1732056438137,-731.74757229,0.00031596,2]
[342709166,1732056439123,-616.39920757,0.00031342,2]
[342709167,1732056439144,-98.20664995,0.00031596,2]
[342709168,1732056454137,-616.39920755,0.00031495,2]
[342709169,1732056454158,-595.72546788,0.00031596,2]
[342709173,1732056547098,-150.0,0.00016492,2]
[342709174,1732056547123,-209.16,0.00019178,2]
[342709175,1732056547146,-36.56790902,0.0003,120]
[342709176,1732056549097,-114.43209098,0.0003,120]
[342709177,1732056549119,-400.0,0.00031595,2]
[342709178,1732056549141,-1827.02232502,0.00031596,2]
[342709179,1732056551100,-416.9922719,0.00031596,2]
[342709183,1732056562126,-1455.68642018,0.00031596,2]
[342709184,1732056562146,-3134.92,0.00031596,2]
[342709185,1732056562165,-600.0,0.000316,120]
[342709186,1732056562189,-400.0,0.00032999,3]
[342709187,1732056562209,-886.0,0.00032999,2]
[342709188,1732056562230,-500.0,0.00033,30]
[342709189,1732056562251,-500.0,0.00033,30]
[342709190,1732056562270,-500.0,0.00033,30]
[342709191,1732056562290,-500.0,0.00033,30]
[342709192,1732056562312,-504.34110348,0.00033,30]
[342709193,1732056562333,-150.99,0.00033,2]
[342709194,1732056562352,-162.22,0.00033,15]
[342709195,1732056562372,-3079.26,0.00033,2]
[342709196,1732056562393,-266.6,0.00033,10]
[342709197,1732056562412,-180.67,0.00033,17]
[342709198,1732056562432,-8227.4,0.00033,2]
[342709199,1732056562451,-299.99,0.00033,30]
[342709200,1732056562470,-1904.66,0.00033,2]
[342709201,1732056562490,-305.32,0.00033,2]
[342709202,1732056562510,-286.92,0.00033,30]
[342709203,1732056562530,-150.0,0.00033,120]
[342709204,1732056562550,-336.85,0.00033203,2]
[342709205,1732056562572,-2752.21,0.0003383,2]
[342709206,1732056562592,-2948.44,0.0003383,2]
[342709207,1732056562612,-424.0,0.00033996,2]
[342709208,1732056562632,-500.0,0.00034,30]
[342709209,1732056562652,-500.0,0.00034,30]
[342709210,1732056562674,-500.0,0.00034,30]
[342709211,1732056562694,-500.0,0.00034,30]
[342709212,1732056562715,-500.0,0.00034,30]
[342709213,1732056562735,-158.92431357,0.00034,30]
[342709214,1732056562755,-5800.0,0.00034284,2]
[342709215,1732056562775,-432.0,0.00034343,3]
[342709216,1732056562795,-150.0,0.00034548,10]
[342709217,1732056562816,-211.94,0.00034549,2]
[342709218,1732056562836,-191.0,0.00034755,30]
[342709219,1732056562855,-231.22,0.00034808,2]
[342709220,1732056562875,-2417.4181373,0.000351,2]
[342709221,1732056568104,-9253.972616,0.000351,2]
[342709222,1732056571154,-208.51528199,0.000351,2]
[342709223,1732056573087,-581.219723,0.000351,2]
[342709246,1732056631530,-259.58195359,0.00018141,2]
[342709247,1732056631540,-570.122572,0.000316,120]
[342709248,1732056631550,-85.58569493,0.00031685,120]
[342709249,1732056631562,-129.76062527,0.00031685,120]
[342709250,1732056631571,-184.73096159,0.00031685,120]
[342709251,1732056631583,-629.35639744,0.00031685,120]
[342709252,1732056631593,-2529.75108767,0.000351,2]
[342709253,1732056631602,-200.0,0.00035109,30]
[342709254,1732056631612,-6073.065754,0.0003511,63]
[342709255,1732056631626,-680.75372249,0.0003511,63]
[342709256,1732056631637,-1351.99052351,0.0003511,63]
[342709257,1732056631647,-31.75160315,0.00035244,120]
[342709258,1732056631658,-670.21068993,0.00035244,120]
[342709259,1732056631670,-578.0878976,0.00035244,120]
[342709260,1732056631682,-463.95980932,0.00035244,120]
[342709261,1732056631691,-250.0,0.00035276,2]
[342709262,1732056631701,-250.0,0.00035329,2]
[342709263,1732056631710,-2397.36535582,0.00035347,2]
[342709264,1732056631720,-23900.0,0.00035348,2]
[342709265,1732056631729,-2751.0,0.0003535,120]
[342709266,1732056631739,-159.9,0.0003535,2]
[342709267,1732056631748,-633.54,0.00035392,120]
[342709268,1732056631758,-3548.48,0.00035412,2]
[342709269,1732056631767,-168.63,0.00035412,2]
[342709270,1732056631776,-1000.0,0.00035412,2]
[342709271,1732056631786,-168.63,0.00035447,2]
[342709272,1732056631794,-2719.56,0.0003546,2]
[342709273,1732056631804,-154.43,0.00035463,120]
[342709274,1732056631813,-336.85,0.00035467,2]
[342709275,1732056631822,-157.37,0.00035473,120]
[342709276,1732056631832,-168.63,0.00035483,2]
[342709277,1732056631841,-250.0,0.00035505,120]
[342709278,1732056631850,-168.63,0.00035518,2]
[342709279,1732056631859,-168.63,0.00035554,2]
[342709280,1732056631868,-168.63,0.00035589,2]
[342709281,1732056631877,-200.0,0.00035691,2]
[342709282,1732056631887,-250.0,0.00035722,2]
[342709283,1732056631896,-1978.519,0.00036142,44]
[342709284,1732056631905,-165.326,0.00036142,44]
[342709285,1732056631914,-1500.0,0.00036856,120]
[342709286,1732056631923,-168.0,0.00036943,2]
[342709287,1732056631932,-150.0,0.00036943,2]
[342709288,1732056631941,-2000.0,0.00036943,120]
[342709289,1732056631950,-168.0,0.0003698,2]
[342709291,1732056631959,-168.0,0.00037017,2]
[342709293,1732056631968,-168.0,0.00037054,2]
[342709295,1732056631977,-168.0,0.00037091,2]
[342709297,1732056631986,-168.0,0.00037128,2]
[342709299,1732056631995,-1000.0,0.000373,15]
[342709301,1732056632005,-909.77,0.0003734,2]
[342709303,1732056632015,-1000.0,0.00037437,2]
[342709305,1732056632024,-180.62,0.00037491,2]
[342709307,1732056632033,-325.32,0.00037602,2]
[342709309,1732056632042,-300.0,0.00037602,2]
[342709311,1732056632051,-336.85,0.00037731,2]
[342709313,1732056632060,-152.66,0.00037876,2]
[342709314,1732056632069,-150.0,0.00037876,2]
[342709316,1732056632079,-150.0,0.00037876,2]
[342709318,1732056632088,-215.3463202,0.00038,120]
[342709321,1732056632098,-814.08735903,0.00038,120]
[342709323,1732056632107,-300.0,0.00038692,2]
[342709324,1732056632116,-865.44,0.00038841,2]
[342709326,1732056632125,-4934.75803641,0.00038883,7]
[342709328,1732056632135,-362.34,0.00038978,2]
[342709330,1732056632144,-217.02,0.00038978,2]
[342709333,1732056632156,-304.27,0.00038978,2]
[342709334,1732056632165,-236.99,0.00038978,2]
[342709336,1732056632174,-200.0,0.00039056,2]
[342709339,1732056632184,-154.43,0.00039554,120]
[342709340,1732056632193,-308.49,0.000398,2]
[342709343,1732056632211,-633.54,0.00039816,120]
[342709345,1732056632221,-193.80933978,0.000399,15]
[342709347,1732056632230,-4785.09471538,0.000399,15]
[342709349,1732056632239,-127.66510238,0.00039945,120]
[342709352,1732056632252,-872.33489762,0.00039945,120]
[342709354,1732056632261,-643.56,0.0003999,3]
[342709356,1732056632271,-176.4,0.0003999,10]
[342709358,1732056632280,-351.63,0.0003999,10]
[342709360,1732056632290,-293.03,0.0003999,10]
[342709361,1732056632299,-336.85,0.00039995,2]
[342709362,1732056632309,-1272.44,0.0004,120]
[342709364,1732056632318,-857.34876866,0.0004,120]
[342709366,1732056632329,-11642.63123134,0.0004,120]
[342709368,1732056632343,-12500.0,0.0004,120]
[342709369,1732056632352,-3037.88,0.0004,120]
[342709370,1732056632361,-377.66,0.0004,30]
[342709371,1732056632371,-12499.99,0.0004,120]
[342709372,1732056632381,-12499.99,0.0004,120]
[342709373,1732056632390,-6716.41,0.0004,30]
[342709374,1732056632399,-12500.0,0.0004,120]
[342709375,1732056632409,-215.3463202,0.0004,120]
[342709376,1732056632419,-814.08735903,0.0004,120]
[342709377,1732056632428,-300.0,0.00040062,2]
[342709378,1732056632438,-10448.25,0.00040375,120]
[342709379,1732056632447,-12500.0,0.00040375,120]
[342709380,1732056632456,-12500.0,0.0004075,120]
[342709381,1732056632465,-211.94,0.00040952,2]
[342709382,1732056632475,-1800.0,0.00041,42]
[342709383,1732056632485,-157.0,0.00041096,2]
[342709384,1732056632495,-12500.0,0.00041125,120]
[342709385,1732056632658,-165.77,0.00041238,120]
[342709386,1732056632673,-12500.0,0.000415,120]
[342709387,1732056632683,-462.46,0.00041568,2]
[342709388,1732056632692,-12500.0,0.00041875,120]
[342709389,1732056632702,-1000.0,0.00042117,2]
[342709390,1732056632712,-12500.0,0.0004225,120]
[342709391,1732056632721,-336.85,0.00042259,2]
[342709392,1732056632730,-166.95,0.00042475,2]
[342709393,1732056632739,-12500.0,0.00042625,120]
[342709394,1732056632748,-795.14605856,0.000429,15]
[342709395,1732056632758,-300.98258281,0.000429,2]
[342709396,1732056632767,-85322.47406262,0.00043,30]
[342709397,1732056632779,-39872.86444399,0.00043,30]
[342709398,1732056632789,-430.6926404,0.00043,120]
[342709399,1732056632798,-1628.17471805,0.00043,120]
[342709400,1732056632807,-9480.11,0.00043,120]
[342709401,1732056632816,-154.43,0.00043645,120]
[342709402,1732056632825,-633.54,0.0004424,120]
[342709403,1732056632838,-336.85,0.00044523,2]
[342709404,1732056632847,-151.0,0.00045014,120]
[342709405,1732056632856,-193.80933977,0.00045456,15]
[342709406,1732056632866,-4785.09471533,0.00045456,15]
[342709407,1732056632875,-166.95,0.00045981,2]
[342709408,1732056632884,-538.3658005,0.00046,120]
[342709409,1732056632895,-2035.21839756,0.00046,120]
[342709410,1732056632905,-336.85,0.00046787,2]
[342709411,1732056632915,-1000.0,0.00046797,2]
[342709412,1732056632925,-211.94,0.00047354,2]
[342709413,1732056632935,-154.43,0.00047737,120]
[342709414,1732056632944,-1000.0,0.00047999,2]
[342709415,1732056632954,-538.36580049,0.00048,120]
[342709416,1732056632963,-2035.21839755,0.00048,120]
[342709417,1732056632973,-633.54,0.00048664,120]
[342709418,1732056632983,-336.85,0.00049051,2]
[342709419,1732056632993,-432.65,0.00049341,30]
[342709420,1732056633002,-166.95,0.00049486,2]
[342709421,1732056633011,-10373.08643463,0.000498,120]
[342709422,1732056633020,-1000.0,0.00049945,120]
[342709423,1732056633029,-30000.0,0.0005,120]
[342709424,1732056633039,-16021.0,0.0005,30]
[342709425,1732056633049,-500.0,0.0005,120]
[342709426,1732056633058,-150.0,0.000503,2]
[342709427,1732056633069,-193.80933977,0.00051011,15]
[342709428,1732056633078,-4785.09471533,0.00051011,15]
[342709429,1732056633088,-336.85,0.00051315,2]
[342709430,1732056633098,-1000.0,0.00051476,120]
[342709431,1732056633107,-154.43,0.00051828,120]
[342709432,1732056633118,-500.0,0.00052084,10]
[342709433,1732056633128,-180.72930077,0.00052084,7]
[342709434,1732056633137,-909.77,0.00052276,2]
[342709435,1732056633151,-637.28923184,0.0005269,2]
[342709436,1732056633160,-219.42,0.000528,7]
[342709437,1732056633170,-4035.0,0.000529,120]
[342709438,1732056633180,-633.54,0.00053088,120]
[342709439,1732056633189,-336.85,0.00053578,2]
[342709440,1732056633199,-211.94,0.00053756,2]
[342709441,1732056633209,-433.13,0.00053841,30]
[342709442,1732056633218,-210.1,0.00053841,30]
[342709443,1732056633227,-433.13,0.00053841,30]
[342709444,1732056633237,-150.0,0.00053978,30]
[342709445,1732056633247,-150.0,0.00053978,30]
[342709446,1732056633257,-150.0,0.00053978,30]
[342709447,1732056633267,-150.0,0.00053978,30]
[342709448,1732056633277,-150.0,0.00053978,30]
[342709449,1732056633287,-150.0,0.00053978,30]
[342709450,1732056633296,-150.0,0.00053978,30]
[342709451,1732056633306,-150.0,0.00053978,30]
[342709452,1732056633315,-150.0,0.00053978,30]
[342709453,1732056633325,-150.0,0.00053978,30]
[342709454,1732056633335,-150.0,0.00053978,30]
[342709455,1732056633346,-150.0,0.00053978,30]
[342709456,1732056633356,-150.0,0.00053978,30]
[342709457,1732056633365,-150.0,0.00053978,30]
[342709458,1732056633374,-150.0,0.00053978,30]
[342709459,1732056633385,-150.0,0.00053978,30]
[342709460,1732056633400,-150.0,0.00053978,30]
[342709461,1732056633409,-150.0,0.00053978,30]
[342709462,1732056633421,-150.0,0.00053978,30]
[342709463,1732056633432,-150.0,0.00053978,30]
[342709464,1732056633441,-150.0,0.00053978,30]
[342709465,1732056633451,-157.37,0.00054194,120]
[342709466,1732056633461,-1100.0,0.00054234,60]
[342709467,1732056633470,-11557.0,0.000543,120]
[342709468,1732056633479,-1978.519,0.00054607,103]
[342709469,1732056633489,-214.492,0.00054694,2]
[342709470,1732056633498,-102194.57844918,0.00054694,120]
[342709471,1732056633511,-3684.64521271,0.00054694,120]
[342709472,1732056633522,-10552.6900996,0.00054694,120]
[342709473,1732056633537,-16581.58611843,0.00054694,120]
[342709474,1732056633549,-784.14915639,0.00054694,120]
[342709475,1732056633560,-4057.61514411,0.00054694,120]
[342709476,1732056633571,-1477.73295,0.00054694,120]
[342709477,1732056633583,-2175.883476,0.00054694,120]
[342709478,1732056633596,-13491.11939358,0.00054694,120]
[342709479,1732056633606,-500.0,0.00054794,120]
[342709480,1732056633615,-500.0,0.00054794,120]
[342709481,1732056633626,-500.0,0.00054794,120]
[342709482,1732056633635,-500.0,0.00054794,120]
[342709483,1732056633646,-500.0,0.00054794,120]
[342709484,1732056633655,-500.0,0.00054794,120]
[342709485,1732056633664,-500.0,0.00054794,120]
[342709486,1732056633674,-500.0,0.00054794,120]
[342709487,1732056633684,-500.0,0.00054794,120]
[342709488,1732056633693,-500.0,0.00054794,120]
[342709489,1732056633703,-500.0,0.00054794,120]
[342709490,1732056633712,-500.0,0.00054794,120]
[342709491,1732056633721,-502.37698348,0.00054794,120]
[342709492,1732056633731,-500.0,0.00054794,120]
[342709493,1732056633740,-575.64458866,0.00054794,120]
[342709494,1732056633749,-500.0,0.00054794,120]
[342709495,1732056633759,-549.91064247,0.00054794,120]
[342709496,1732056633768,-500.0,0.00054794,120]
[342709497,1732056633778,-500.0,0.00054794,120]
[342709498,1732056633787,-500.0,0.00054794,120]
[342709499,1732056633796,-500.0,0.00054794,120]
[342709500,1732056633806,-504.44193891,0.00054794,120]
[342709501,1732056633815,-155.85415895,0.00054794,120]
[342709502,1732056633825,-500.0,0.00054794,120]
[342709503,1732056633834,-532.46253701,0.00054794,120]
[342709504,1732056633844,-500.0,0.00054794,120]
[342709505,1732056633853,-446.5983643,0.00054794,120]
[342709506,1732056633863,-500.0,0.00054794,120]
[342709507,1732056633873,-500.0,0.00054794,120]
[342709508,1732056633882,-500.0,0.00054794,120]
[342709509,1732056633893,-500.0,0.00054794,120]
[342709510,1732056633902,-506.384288,0.00054794,120]
[342709511,1732056633911,-500.0,0.00054794,120]
[342709512,1732056633920,-500.0,0.00054794,120]
[342709513,1732056633930,-500.0,0.00054794,120]
[342709514,1732056633939,-500.0,0.00054794,120]
[342709515,1732056633948,-500.0,0.00054794,120]
[342709516,1732056633958,-500.0,0.00054794,120]
[342709517,1732056633967,-462.17448893,0.00054794,120]
[342709518,1732056633977,-500.0,0.00054794,120]
[342709519,1732056633986,-500.0,0.00054794,120]
[342709520,1732056633995,-500.0,0.00054794,120]
[342709521,1732056634004,-500.0,0.00054794,120]
[342709522,1732056634013,-500.0,0.00054794,120]
[342709523,1732056634023,-500.0,0.00054794,120]
[342709524,1732056634032,-500.0,0.00054794,120]
[342709525,1732056634041,-500.0,0.00054794,120]
[342709526,1732056634050,-500.0,0.00054794,120]
[342709527,1732056634059,-500.0,0.00054794,120]
[342709528,1732056634068,-500.0,0.00054794,120]
[342709529,1732056634078,-189.41854671,0.00054794,120]
[342709530,1732056634088,-500.0,0.00054794,120]
[342709531,1732056634097,-500.0,0.00054794,120]
[342709532,1732056634106,-500.0,0.00054794,120]
[342709533,1732056634115,-500.0,0.00054794,120]
[342709534,1732056634125,-500.0,0.00054794,120]
[342709535,1732056634134,-500.0,0.00054794,120]
[342709536,1732056634144,-500.0,0.00054794,120]
[342709537,1732056634153,-500.0,0.00054794,120]
[342709538,1732056634161,-500.0,0.00054794,120]
[342709539,1732056634170,-208.96,0.00054794,120]